{"text_format":"1","workbook":"xlsx","n_sheets":3,"sheets":["Inventario","Hoja2","Hoja3"],"not_rendered":{"charts":0,"images":0,"macros":1,"external_links":0,"defined_names":0,"comments":0,"pivot_tables":1},"unopened":[],"bounds":{"document_bytes":16777216,"sheet_cells":100000,"rows_first":2000,"rows_last":500,"rows_between":2000,"halvings":0,"cell_chars":16384,"cell_head_chars":4096},"cells_cut":0,"cells_raw":0,"read":"whole","date_system":"1900"}

{"sheet":"Inventario","index":0,"n_rows":23,"n_cols":9,"rows_kept":23,"cut":false,"hidden":false,"merged":[]}
["SUCURSAL","LABORATORIO","COD. DE VENDEDOR","COD. DE MEDICINA","NOMBRE DE MEDICINA","PRECIO X CAJA","MONEDA","CANT","TOTAL"]
["MAYOLO","GENFAR","C001",104,"APRONAX",80,"$",1,{"$f":"F2*H2","v":80}]
["PALMERAS","GENFAR","C002",202,"BACTRIM",90,"$",2,{"$f":"F3*H3","v":180}]
["PALMERAS","GENFAR","C001",403,"CLOTRIMAZOL",60,"$",1,60]
["MAYOLO","GENFAR","C002",403,"CLOTRIMAZOL",60,"$",1,60]
["BOLIVAR","GENFAR","C003",202,"BACTRIM",90,"$",2,180]
["MAYOLO","GENFAR","C002",403,"CLOTRIMAZOL",60,"$",3,180]
["BOLIVAR","GENFAR","C005",104,"APRONAX",80,"$",1,80]
["BOLIVAR","GENFAR","C002",202,"BACTRIM",90,"$",1,90]
["MAYOLO","MARFAM","C007",105,"DULCOLAX",55,"$",2,110]
["LA MAR","MARFAM","C003",207,"ERITROMICINA",65,"$",2,130]
["MAYOLO","MARFAM","C004",105,"DULCOLAX",55,"$",1,55]
["LA MAR","MARFAM","C005",207,"ERITROMICINA",65,"$",1,65]
["BOLIVAR","MARFAM","C003",105,"FURAZOLIDONA",45,"$",2,90]
["MAYOLO","MARFAM","C002",207,"ERITROMICINA",65,"$",3,195]
["MAYOLO","MARFAM","C005",403,"GAMALATE",85,"$",4,340]
["BOLIVAR","PORTUGAL","C001",301,"HIOSCINA",35,"$",1,35]
["MAYOLO","PORTUGAL","C001",301,"HIOSCINA",35,"$",1,35]
["PALMERAS","PORTUGAL","C002",105,"MUCOTRIM",100,"$",1,100]
["MAYOLO","PORTUGAL","C003",301,"OMEPRAZOL",40,"$",1,40]
["BOLIVAR","PORTUGAL","C001",301,"OMEPRAZOL",40,"$",1,40]
["PALMERAS","PORTUGAL","C005",301,"OMEPRAZOL",40,"$",2,80]
["PALMERAS","PORTUGAL","C008",105,"MUCOTRIM",100,"$",3,300]

{"sheet":"Hoja2","index":1,"n_rows":29,"n_cols":5,"rows_kept":29,"cut":false,"hidden":false,"merged":[]}
[]
[]
[null,"SUCURSAL","NOMBRE DE MEDICINA","CANTIDAD MEDICINA","MONTO DE VENTA"]
[null,"BOLIVAR",null,8,515]
[null,null,"APRONAX",1,80]
[null,null,"BACTRIM",3,270]
[null,null,"FURAZOLIDONA",2,90]
[null,null,"HIOSCINA",1,35]
[null,null,"OMEPRAZOL",1,40]
[]
[null,"LA MAR",null,3,195]
[null,null,"ERITROMICINA",3,195]
[]
[null,"MAYOLO",null,17,1095]
[null,null,"APRONAX",1,80]
[null,null,"CLOTRIMAZOL",4,240]
[null,null,"DULCOLAX",3,165]
[null,null,"ERITROMICINA",3,195]
[null,null,"GAMALATE",4,340]
[null,null,"HIOSCINA",1,35]
[null,null,"OMEPRAZOL",1,40]
[]
[null,"PALMERAS",null,9,720]
[null,null,"BACTRIM",2,180]
[null,null,"CLOTRIMAZOL",1,60]
[null,null,"MUCOTRIM",4,400]
[null,null,"OMEPRAZOL",2,80]
[]
[null,"Total general",null,37,2525]

{"sheet":"Hoja3","index":2,"n_rows":0,"n_cols":0,"rows_kept":0,"cut":false,"hidden":false,"merged":[]}